Cogmind - Beta 16 @@@ ROGUE MODE // 2026.02.08 @ 09:50:22 Player: shapeshifter Result: Destroyed by Autobeam Turret with Autobeam Performance ------------- Evolutions (0) 0 Regions Visited (3) 600 Robots Destroyed (21) 105 Value Destroyed (365) 365 Prototype IDs (0) 0 Alien Tech Used (0) 0 Bonus (0) 0 TOTAL SCORE: 1070 Bonus ------- None Cogmind --------- Core Integrity 0/250 Matter 165/300 Energy 100/100 System Corruption 0% Temperature Cool (6) Movement Core (800) Ox15 Location -10/Subcaves Parts ------- > --- POWER (1) -------- (None) > --- PROPULSION (2) --- (None) > --- UTILITY (2) ------ Disposable Heat Sink High-capacity Storage Unit > --- WEAPON (2) ------- Heavy Assault Rifle Heavy Assault Rifle > --- INVENTORY (20) --- High-capacity Matter Pod (149) Autogun Autogun Autogun Autogun SUBCON Basin (Full) Peak State ------------ > --- POWER ------------ (None) > --- PROPULSION ------- Light Treads Subdweller Monowheel > --- UTILITY ---------- Disposable Heat Sink High-capacity Storage Unit > --- WEAPON ----------- Heavy Assault Rifle Heavy Assault Rifle > --- INVENTORY -------- High-capacity Matter Pod Autogun Autogun Autogun Autogun SUBCON Basin [Rating: 28] Favorites ----------- Power Ion Engine Engine Ion Engine Propulsion Light Treads Treads Light Treads Wheel Subdweller Monowheel Utility Seismic Detector Device Seismic Detector Storage High-capacity Storage Unit Weapon Heavy Assault Rifle Energy Gun Small Laser Ballistic Gun Heavy Assault Rifle Build | -11 -10 -10 -10 ------- Run | Yrd Mat Min Sub Slots Evolved . | . . . . Power . | . . . . Propulsion . | . . . . Utility . | . . . . Weapon . | . . . . Parts Attached 15 | 7 3 . 5 Power 1 | 1 . . . Engine 1 | 1 . . . Core . | . . . . Reactor . | . . . . Propulsion 3 | 2 . . 1 Treads 2 | 2 . . . Leg . | . . . . Wheel 1 | . . . 1 Hover . | . . . . Flight . | . . . . Utility 5 | 2 1 . 2 Device 2 | 1 . . 1 Storage 3 | 1 1 . 1 Processor . | . . . . Hackware . | . . . . Protection . | . . . . Artifact . | . . . . Weapon 6 | 2 2 . 2 Energy Gun 2 | 2 . . . Energy Cannon . | . . . . Ballistic Gun 4 | . 2 . 2 Ballistic Cannon . | . . . . Launcher . | . . . . Special Weapon . | . . . . Impact Weapon . | . . . . Slashing Weapon . | . . . . Piercing Weapon . | . . . . Special Melee Weapon . | . . . . Unidentified Prototypes . | . . . . Parts Lost 5 | . . . 5 Power 1 | . . . 1 Propulsion 3 | . . . 3 Utility 1 | . . . 1 Weapon . | . . . . Highest Loss Streak 2 | . . . 2 To Critical Strikes . | . . . . Average Backups 8 | 3 9 15 7 Power . | . 1 1 . Propulsion . | 1 2 2 . Utility 2 | . 3 6 2 Weapon 4 | . 2 6 4 Tool/Special . | . . . . Unused Backups 13 | . 1 . 12 Power 1 | . . . 1 Propulsion 2 | . . . 2 Utility 5 | . . . 5 Weapon 5 | . 1 . 4 Tool/Special . | . . . . Average Slot Usage (%) 93 | . 99 100 91 Engine 9 | . 14 14 7 Treads 25 | . 28 28 24 Device 13 | . 14 14 13 Storage 14 | . 14 14 14 Energy Gun 2 | . 15 . . Ballistic Gun 25 | . 11 28 28 Peak Build Rating 28 | 7 11 11 28 Average Rating 19 | 4 8 11 23 On Entrance 7 | . 7 11 11 Avg Prop Armor Cover (%) 13 | . . . 13 Naked Turns . | . . . . Heaviest Build 52 | 14 32 32 52 Greatest Support 40 | 40 40 40 40 Greatest Overweight (x) 2 | . . . 2 Average Overweight (x) . | . . . . Largest Inventory Capacity 20 | 8 15 15 20 Average Capacity 17 | 7 14 15 18 Most Carried 20 | 6 15 15 20 Average Carried 16 | 3 9 15 18 Final Capacity 20 | 8 15 15 20 Final Carried 20 | 5 15 15 20 Class Distribution -------------------- 100% | Mutant Dominant Class ---------------- Mutant | -10/Materials Mutant | -10/Mines Mutant | -10/Subcaves Resources | -11 -10 -10 -10 ----------- Run | Yrd Mat Min Sub Matter Collected 689 | 260 136 142 151 Remotely . | . . . . Salvage Created 515 | 80 237 55 143 Parts 37 | 6 14 6 11 Haulers Intercepted . | . . . . Recyclers Shooed . | . . . . Parts Field Recycled . | . . . . Retrieved Matter . | . . . . Parts Self-Destructed 12 | . . . 12 Prevented . | . . . . Parts Restored . | . . . . Kills | -11 -10 -10 -10 ------- Run | Yrd Mat Min Sub Combat Hostiles Destroyed 17 | . 7 3 7 Guns 17 | . 7 3 7 Classes Destroyed 7 | 2 3 . 2 Tunneler 1 | 1 . . . Recycler 1 | 1 . . . Turret 1 | . . . 1 Watcher 1 | . 1 . . Swarmer 12 | . 3 3 6 Grunt 4 | . 4 . . Subdweller 1 | . . . 1 Best Kill Streak 3 | 2 3 3 2 Combat Bots Only 3 | . 3 3 2 Max Kills in Single Turn 1 | 1 1 1 1 Gunslinging . | . . . . Exploded . | . . . . Melee . | . . . . Uniques/NPCs Destroyed . | . . . . Combat | -11 -10 -10 -10 -------- Run | Yrd Mat Min Sub Hostile Shots Fired 178 | . 34 5 139 Missed 70 | . 6 1 63 Hits 108 | . 28 4 76 Projectile 108 | . 28 4 76 Critical Strikes 1 | . . . 1 Damage Taken 1030 | . 292 31 707 Core 252 | . 63 15 174 Absorbed by Shields . | . . . . Core Remaining (%) 100 | 100 . . . Volleys Fired 65 | 4 20 6 35 Largest 2 | 2 2 2 2 Hottest 90 | 90 90 46 46 Shots Fired 130 | 8 40 12 70 Gun 130 | 8 40 12 70 Cannon . | . . . . Launcher . | . . . . Special . | . . . . Kinetic 110 | . 28 12 70 Thermal 20 | 8 12 . . Explosive . | . . . . Electromagnetic . | . . . . Robot Hit Streak 10 | 3 10 3 4 Robot Miss Streak 4 | 1 2 3 4 Penetration Max . | . . . . Secondary Targets 1 | . . . 1 Max Gunslinging Chain 1 | . . . 1 Shots Hit Robots 72 | 6 29 5 32 Core Hits 31 | 3 12 4 12 Critical Kills . | . . . . Critical Parts Destroyed . | . . . . Critical Strikes 1 | 1 . . . Burn 1 | 1 . . . Melee Attacks . | . . . . Impact . | . . . . Slashing . | . . . . Piercing . | . . . . Sneak Attacks . | . . . . Combat Hostiles . | . . . . Follow-up Attacks . | . . . . Damage Inflicted 1078 | 73 411 76 518 Guns 1078 | 73 411 76 518 Cannons . | . . . . Explosions . | . . . . Melee . | . . . . Ramming . | . . . . Kinetic 902 | . 308 76 518 Thermal 176 | 73 103 . . Explosive . | . . . . Electromagnetic . | . . . . Impact . | . . . . Slashing . | . . . . Piercing . | . . . . Highest Corruption . | . . . . Average Corruption . | . . . . Corruption Purged . | . . . . Corruption Blocked . | . . . . Overload Shots . | . . . . Overflow Damage . | . . . . Projectiles . | . . . . Explosions . | . . . . Melee . | . . . . Knockbacks . | . . . . Impact . | . . . . Kinetic . | . . . . Secondary . | . . . . Self-Inflicted Damage . | . . . . Shots . | . . . . Rammed . | . . . . Targets Rammed . | . . . . Kicked . | . . . . Crushed . | . . . . Highest Temperature 96 | 60 96 . 6 Average Temperature 29 | 30 29 . 6 Received Heat Transfer 486 | . 144 . 342 Siege Activations . | . . . . Martial Activations . | . . . . Shielding Activations . | . . . . Robots Disrupted . | . . . . Combat Hostiles . | . . . . Robots Corrupted . | . . . . Combat Hostiles . | . . . . Parts Fried . | . . . . Impact Corruptions . | . . . . Robots Melted . | . . . . Combat Hostiles . | . . . . Parts Melted . | . . . . Heat Transferred 533 | 260 273 . . Parts Sabotaged . | . . . . Parts Stolen . | . . . . Parts Stripped . | . . . . Power Chain Reactions . | . . . . Alert | -11 -10 -10 -10 ------- Run | Yrd Mat Min Sub Maximum Alert Level . | . . . . Low Security (%) 100 | 100 100 100 . Level 1 . | . . . . Level 2 . | . . . . Level 3 . | . . . . Level 4 . | . . . . Level 5 . | . . . . High Security . | . . . . Max Security . | . . . . Peak Influence 105 | 10 105 81 . Initial 31 | . . 31 . Average 36 | 1 41 44 . Influence Increases 547 | 10 212 70 255 Destroy 0b10 Robot/C 340 | . 140 60 140 Destroy 0b10 Robot/NC 15 | 10 5 . . Destroy Leader 42 | . 22 10 10 Select Force Hacks 30 | . 30 . . Disable Machine 15 | . 15 . . Lose Combat Pursuer 105 | . . . 105 Influence Decreases 411 | 10 130 141 130 Entered New Map 58 | . . 51 7 Time Decay 323 | 10 130 90 93 Lost Part 30 | . . . 30 Squads Dispatched 2 | . 2 . . Investigation 2 | . 2 . . Extermination . | . . . . Reinforcement . | . . . . Assault . | . . . . Garrison . | . . . . Intercept . | . . . . Searches Triggered . | . . . . Construction Impeded . | . . . . Haulers Reinforced . | . . . . Active Scanning Responses . | . . . . Cargo Convoy Interrupts . | . . . . Stealth | -11 -10 -10 -10 --------- Run | Yrd Mat Min Sub Distress Signals . | . . . . Communications Jammed . | . . . . Distress Signals . | . . . . Times Spotted 31 | . 10 5 16 Peak Tracking Total 6 | . 3 3 6 Tactical Retreats 3 | . . . 3 Traps | -11 -10 -10 -10 ------- Run | Yrd Mat Min Sub Traps Triggered 1 | . 1 . . Indirectly . | . . . . Trap Hack Attempts . | . . . . Triggered . | . . . . Disarmed . | . . . . Reprogrammed . | . . . . Reused . | . . . . Traps Extracted . | . . . . Installed . | . . . . Triggered . | . . . . Machines | -11 -10 -10 -10 ---------- Run | Yrd Mat Min Sub Machines Disabled 2 | . 1 . 1 Max in Single Turn 1 | . 1 . 1 Machines Repaired . | . . . . Machines Dismantled . | . . . . Machines Sabotaged . | . . . . Overloaded Fab Kills . | . . . . Hacking | -11 -10 -10 -10 --------- Run | Yrd Mat Min Sub Machines Accessed 5 | . 3 . 2 Terminals 2 | . 2 . . Fabricators . | . . . . Repair Stations . | . . . . Recycling Units 1 | . 1 . . Scanalyzers . | . . . . Garrison Access . | . . . . Total Hacks 9 | . 6 . 3 Successful 7 | . 4 . 3 Failed 2 | . 2 . . Catastrophic . | . . . . Database Lockouts . | . . . . Manual 5 | . 5 . . Terminals 4 | . 4 . . Fabricators . | . . . . Repair Stations . | . . . . Recycling Units 2 | . 2 . . Scanalyzers . | . . . . Garrison Access . | . . . . Terminal Hacks 3 | . . . 3 Record 1 | . . . 1 Open Door 1 | . . . 1 Release Object 1 | . . . 1 Fabricator Hacks . | . . . . Repair Station Hacks . | . . . . Recycling Unit Hacks 1 | . 1 . . Retrieve Components 1 | . 1 . . Scanalyzer . | . . . . Garrison Access Hacks . | . . . . Unauthorized Hacks 3 | . 3 . . Terminals 2 | . 2 . . Skim 2 | . 2 . . Fabricators . | . . . . Repair Stations . | . . . . Recycling Units 1 | . 1 . . Tunnel 1 | . 1 . . Scanalyzers . | . . . . Garrison Access . | . . . . Data Cores Recovered . | . . . . Used . | . . . . Hacking Detections 2 | . 2 . . Full Trace Events . | . . . . Feedback Events . | . . . . Feedback Blocked . | . . . . Robot Schematics Acquired . | . . . . Robots Built . | . . . . Authchips . | . . . . Time . | . . . . Total Robot Build Rating . | . . . . Part Schematics Acquired . | . . . . Parts Built . | . . . . Authchips . | . . . . Time . | . . . . Total Part Build Rating . | . . . . Part Studies Acquired . | . . . . Parts Repaired . | . . . . Time . | . . . . Parts Recycled . | . . . . Recycled Matter . | . . . . Retrieved Matter . | . . . . Retrieved Components 9 | . 9 . . Parts Scanalyzed . | . . . . Part Schematics Acquired . | . . . . Parts Damaged . | . . . . Bothacking | -11 -10 -10 -10 ------------ Run | Yrd Mat Min Sub Used RIF Installer . | . . . . Robots Hacked . | . . . . Non-combat . | . . . . Combat . | . . . . Robot Hacks Applied . | . . . . Relay Couplers Released . | . . . . Fabnet Peak Effective % . | . . . . Robots Rewired . | . . . . Allies Hacked . | . . . . Hacks Repelled . | . . . . Allies | -11 -10 -10 -10 -------- Run | Yrd Mat Min Sub Total Allies . | . . . . Largest Group . | . . . . Highest-Rated Group . | . . . . Highest-Rated Ally . | . . . . Total Orders . | . . . . Ally Attacks . | . . . . Total Damage . | . . . . Kills . | . . . . Allies Corrupted . | . . . . Allies Melted . | . . . . Intel | -11 -10 -10 -10 ------- Run | Yrd Mat Min Sub Active Infowar (turns) 1597 | 4 381 190 1022 Seismic 1597 | 4 381 190 1022 Robot Analysis Total . | . . . . Derelict Logs Recovered . | . . . . Drone Launches . | . . . . Drone Recoveries . | . . . . Exploration | -11 -10 -10 -10 ------------- Run | Yrd Mat Min Sub Turns Passed 2461 | 90 381 190 1800 Spaces Moved 1152 | 50 189 108 805 Core 17 | 17 . . . Treads 1021 | 33 189 108 691 Legs . | . . . . Wheels 114 | . . . 114 Hover . | . . . . Flight . | . . . . Fastest Speed 50 | 50 160 160 130 Average Speed 190 | 122 160 160 205 Slowest Speed 320 | 160 160 160 320 Overloaded Moves . | . . . . Propulsion Burnouts . | . . . . Robots Hopped . | . . . . Potential Cave-ins . | . . . . Cave-ins Triggered . | . . . . Exploration Rate (%) 24 | 5 30 25 37 Regions Visited 3 Branch Regions 2 Pre-discovered Areas 2 | . 1 1 . Known Exits Taken . | . . . . Unknown Exits Taken 3 | 1 1 1 . Scrap Searched . | . . . . Spaces Dug . | . . . . Terrain Destroyed . | . . . . Melee . | . . . . Projectile . | . . . . AOE . | . . . . Terrain Rammed . | . . . . Walls Destroyed . | . . . . Machines Disabled . | . . . . Actions | -11 -10 -10 -10 --------- Run | Yrd Mat Min Sub Total 1295 | 70 229 113 883 Wait 23 | . . . 23 Move 1149 | 49 188 107 805 Hop . | . . . . Pick Up 25 | 10 14 . 1 Fast Attach 6 | 2 . . 4 Attach 6 | 5 1 . . Detach . | . . . . Swap 5 | . 2 . 3 Drop 16 | . 4 . 12 Fire 65 | 4 20 6 35 Melee . | . . . . Ram . | . . . . Kick . | . . . . Crush . | . . . . Escape Stasis . | . . . . Rewire . | . . . . Trap . | . . . . Miscellaneous . | . . . . Route ------- -11/Scrapyard -10/Materials -10/Mines (discovered 2 exits: [*Mat] / *Sub) -10/Subcaves (discovered 2 exits: [*Rec] / [*Scr]) History --------- Turn | Location | Event 53 | -11/Scrapyard | Discovered new exit (range 12) 91 | -11/Scrapyard | Entered Materials 337 | -10/Materials | Build established: Mutant 448 | -10/Materials | Discovered new exit (range 16) 472 | -10/Materials | Entered Mines 590 | -10/Mines | Discovered new exit (range 10) 609 | -10/Mines | Learned location of Storage (-9) 654 | -10/Mines | Discovered new exit (range 5) 662 | -10/Mines | Entered Subcaves 663 | -10/Subcaves | Approached by a straggling Scientist 808 | -10/Subcaves | Shifting Twisted Machinery released Sub. Optics 931 | -10/Subcaves | Shifting Twisted Machinery released Sub. Optics 947 | -10/Subcaves | Shifting Twisted Machinery released Flamer 1068 | -10/Subcaves | Found SUBCON Basin 1402 | -10/Subcaves | Shifting Twisted Machinery released Battle Rifle 1422 | -10/Subcaves | A swath of the cavern ceiling suddenly collapsed 1838 | -10/Subcaves | A swath of the cavern ceiling suddenly collapsed 2087 | -10/Subcaves | Discovered new exit (range 15) 2407 | -10/Subcaves | Core integrity fell below 50% 2447 | -10/Subcaves | Core integrity fell below 20% 2462 | -10/Subcaves | Destroyed by Autobeam Turret with Autobeam Last Messages --------------- 02311_ Dropped Lgt. Treads. 02311_ Acquired Lgt. Treads. 02313_ Dropped Lgt. Treads. 02313_ Acquired Lgt. Treads. 02343_ Subatomizers dissect the Sub. Optics. 02404_ Acquired 26 matter. 02413_ S-10 Pest destroyed. 02427_ Acquired 16 matter. 02428_ Acquired 13 matter. 02431_ Flight Unit fries itself beyond repair. 02434_ Subatomizers dissect the Lgt. Assault Rifle. 02436_ Lgt. Assault Rifle fries itself beyond repair. 02437_ Lgt. Ion Engine fries itself beyond repair. 02437_ Machine disabled. 02438_ Sub. Monowheel destroyed. 02448_ Lgt. Treads destroyed. 02461_ Autobeam Turret destroyed. Map ----- +----------------------------------------------------+ | ?????????????????????????????????????????????????? | | ?????????????????????????????????????????????????? | | ?????????????????????????????????????????????????? | | ?????????????????????????????????????????????????? | | ?????????????????????????????????????????????????? | | ?????????????????????????????????????????????????? | | ?????????????????????????????????????????????????? | | ?????????????????????????????????????????????????? | | ?????????????????????????????????????????????????? | | ?????????????????????????????????????????????????? | | ???????????????????????????????????????????? ???? | | ???????????????????????????????????????????? ???? | | ???????????????????????????????????????????? ???? | | ???????????????????????????????????????????# ? ?? | | ??????????????????????????????????????????? ?? | | ??????????????????????????????????????????? ?? | | ?????????????# ???????????????????????????? ?? | | ?????????????? ????????????????????????????# """## | | ????????#????? ??????????????????????????? """" # | | ???????? ????# ????????????#?????????????## "#" | | ???????# #### ?????????? #?????????????? ## | | ????????# ?????????? #??????? ???# "" | | ?????????# ?????????? ###### [ ??## ## " | | ????????## ??????### ""??# ##" | | ????????# ??????# % <## " " | | ????????# #????##@ t""?## "" " | | ????????# ##### ######## "## " """ | | ????????# ^ ## # #???????????# """" | | ?????????# % ^ ## ###?????????# """"" | | ?????????# ##???????## # | | ?????????# ## ## ###?##### ## | | ?????????# ?????## #### ### # # #####? | | ?????????????????#### #??# #???? | | ????????????????????###??#### #???? | | ????????????????????????????## ##### # # ##???? | | ?????????????????????????????#####???########????? | | ?????????????????????????????????????????????????? | | ?????????????????????????????????????????????????? | | ?????????????????????????????????????????????????? | | ?????????????????????????????????????????????????? | | ?????????????????????????????????????????????????? | | ?????????????????????????????????????????????????? | | ?????????????????????????????????????????????????? | | ?????????????????????????????????????????????????? | | ?????????????????????????????????????????????????? | | ?????????????????????????????????????????????????? | | ?????????????????????????????????????????????????? | | ?????????????????????????????????????????????????? | | ?????????????????????????????????????????????????? | | ?????????????????????????????????????????????????? | +----------------------------------------------------+ Best States ------------- Heat Dissipation 25 Coolant Potential 50 Energy Generation 10 Energy Capacity 250 Matter Stores 300 Matter Capacity 300 Sight Range 16 Terrain Scan Density 10 Evasion (%) 50 Recoil Reduction 2 Item Schematics ----------------- None Robot Schematics ------------------ None Fabricated ------------ Nothing Repaired ---------- Nothing Studied --------- None Alien Tech Used ----------------- None Achievements -------------- None Challenges ------------ None Game ------ Seed InsulationTerrorTrap Manual? 0 Play Time 00:08:36 Cumulative 682.1 hours Start 2026.02.08 @ 06:54:02 End 2026.02.08 @ 09:50:22 Sessions 2 Manual Loads 0 Difficulty Rogue Special Mode None Game No. 849 Rogue 849 Adventurer 0 Explorer 0 Win Type - Total 24 Types 11/1/3/3/2/0/2/2/0/0 Lore% 96 Gallery% 93 Achievement% 82 Wizard Run 0 Options --------- Layout 2 ASCII 0 Keyboard 0 Movement Mouse Keybinds 0 Fullscreen 2 Font 24/Tamsyn Map View 50x44 Zoom Use 0% Tactical HUD 1 Map Filters NONE Filters NONE Steam 1 RUN: f39facec-2f4a-485f-96d6-397b6d0159c4